Cogmind - Beta 15 @@@ ROGUE MODE // 2025.07.09 @ 21:08:44 Player: jumpy Result: Destroyed by S-43 Plague with Heavy Machine Gun Performance ------------- Evolutions (9) 4500 Regions Visited (18) 3600 Robots Destroyed (54) 270 Value Destroyed (1227) 1227 Prototype IDs (41) 820 Alien Tech Used (0) 0 Bonus (1100) 1100 TOTAL SCORE: 11517 Bonus ------- Entered DSFs 500 Aligned with FarCom 300 Met Imprinter 300 Cogmind --------- Core Integrity 0/1600 Matter 140/300 Energy 98/100 System Corruption 16% Temperature Cool (0) Movement Core (50) Location -1/Access Parts ------- > --- POWER (2) -------- (None) > --- PROPULSION (8) --- (None) > --- UTILITY (13) ----- Enhanced Optical Array Experimental Optical Array Advanced Terrain Scan Processor Improved Melee Analysis Suite > --- WEAPON (2) ------- (None) > --- INVENTORY (5) ---- Advanced Force Booster Enhanced Nova Cannon Enhanced Hardcell Cannon Peak State ------------ > --- POWER ------------ Quantum Reactor Light Quantum Reactor > --- PROPULSION ------- Field Propulsion Array Impulse Thruster Array Impulse Thruster Array Impulse Thruster Array > --- UTILITY ---------- Medium Storage Unit Enhanced Optical Array Experimental Optical Array Long-range Terrain Scanner Advanced Terrain Scan Processor Improved Melee Analysis Suite Advanced ECM Suite Improved Reaction Control System Hacking Suite Makeshift Hacking Suite Makeshift Hacking Suite Improved Hacking Suite > --- WEAPON ----------- (None) > --- INVENTORY -------- Light Quantum Reactor Impulse Thruster Q-thruster Experimental Thermal Generator Advanced Force Booster Improved Reaction Control System Enhanced Nova Cannon Enhanced Hardcell Cannon Micro-nuke Launcher Fusion Bomb Launcher [Rating: 142] Favorites ----------- Power Quantum Reactor Engine Ion Engine Power Core Micro Fission Core Reactor Quantum Reactor Propulsion Impulse Thruster Array Treads Light Treads Wheel Compact Wheel Flight Unit Impulse Thruster Array Utility Makeshift Hacking Suite Device Seismic Detector Storage Medium Storage Unit Processor Improved Melee Analysis Suite Hackware Makeshift Hacking Suite Weapon Advanced Beam Rifle Energy Gun Advanced Beam Rifle Energy Cannon Compact HERF Cannon Ballistic Gun High-powered Shotgun Ballistic Cannon Enhanced Hardcell Cannon Launcher Rocket Launcher Slashing Weapon Greatsword Build | -11 -10 -9 -9 -9 -8 -8 -7 -7 -7 -7 -6 -6 -5 -4 -4 -3 -2 -1 ------- Run | Yrd Mat Mat Min Exi Min Mat Fac Low Low Zio Pro Fac Fac Fac DSF Res Res Acc Slots Evolved 18 | . . 2 . . . 2 2 . . . . 2 2 2 . 2 2 2 Power 1 | . . . . . . . . . . . . . . . . . 1 . Propulsion 6 | . . 1 . . . 2 1 . . . . . . 1 . 1 . . Utility 11 | . . 1 . . . . 1 . . . . 2 2 1 . 1 1 2 Weapon . | . . . . . . . . . . . . . . . . . . . Parts Attached 110 | 7 1 4 . 1 3 15 4 . . 1 2 8 5 1 3 8 31 16 Power 20 | 1 . . . . 1 3 1 . . . . . 2 . . 2 7 3 Engine 6 | 1 . . . . 1 2 1 . . . . . . . . . 1 . Core 4 | . . . . . . 1 . . . . . . 2 . . 1 . . Reactor 10 | . . . . . . . . . . . . . . . . 1 6 3 Propulsion 31 | 2 . 1 . . 1 5 . . . 1 1 4 . . 2 1 8 5 Treads 3 | 2 . . . . . . . . . . . . . . . . . 1 Leg . | . . . . . . . . . . . . . . . . . . . Wheel 1 | . . . . . 1 . . . . . . . . . . . . . Hover . | . . . . . . . . . . . . . . . . . . . Flight 27 | . . 1 . . . 5 . . . 1 1 4 . . 2 1 8 4 Utility 44 | 2 1 1 . 1 . 5 2 . . . 1 4 3 1 1 4 12 6 Device 22 | 1 . . . . . 4 1 . . . . . 1 . . 3 8 4 Storage 6 | 1 1 . . 1 . . . . . . . 1 . . . . 2 . Processor 11 | . . 1 . . . 1 1 . . . 1 2 1 . . 1 2 1 Hackware 5 | . . . . . . . . . . . . 1 1 1 1 . . 1 Protection . | . . . . . . . . . . . . . . . . . . . Artifact . | . . . . . . . . . . . . . . . . . . . Weapon 15 | 2 . 2 . . 1 2 1 . . . . . . . . 1 4 2 Energy Gun 5 | 2 . 2 . . . 1 . . . . . . . . . . . . Energy Cannon 2 | . . . . . . . . . . . . . . . . 1 . 1 Ballistic Gun 1 | . . . . . . 1 . . . . . . . . . . . . Ballistic Cannon 2 | . . . . . . . . . . . . . . . . . 2 . Launcher 2 | . . . . . 1 . . . . . . . . . . . . 1 Special Weapon . | . . . . . . . . . . . . . . . . . . . Impact Weapon . | . . . . . . . . . . . . . . . . . . . Slashing Weapon 3 | . . . . . . . 1 . . . . . . . . . 2 . Piercing Weapon . | . . . . . . . . . . . . . . . . . . . Special Melee Weapon . | . . . . . . . . . . . . . . . . . . . Unidentified Prototypes 18 | . . 2 . . . 2 1 . . . . 3 . . . 1 6 3 Parts Lost 49 | . . . . . 5 . . . . . . 1 . . 5 5 13 20 Power 9 | . . . . . 1 . . . . . . . . . . . 4 4 Propulsion 21 | . . . . . 3 . . . . . . 1 . . 4 2 3 8 Utility 14 | . . . . . . . . . . . . . . . . 2 4 8 Weapon 5 | . . . . . 1 . . . . . . . . . 1 1 2 . Highest Loss Streak 17 | . . . . . 4 . . . . . . 1 . . 5 2 5 17 To Critical Strikes . | . . . . . . . . . . . . . . . . . . . Average Backups 8 | 2 7 8 11 11 12 3 2 3 4 4 5 7 8 9 9 7 7 8 Power . | . 1 1 1 1 1 . . . . . . . 1 1 1 . . . Propulsion 1 | 1 2 2 3 2 4 . . 1 1 1 . 1 1 . . . 1 1 Utility 3 | . 3 3 3 3 4 1 2 2 2 3 4 5 6 7 7 6 3 2 Weapon 2 | . 1 1 4 4 3 . . . 1 . . . . . 1 1 2 3 Tool/Special . | . . . . . . . . . . . . . . . . . . . Unused Backups 16 | . . . 1 1 . 2 . . . 2 . 1 1 1 . . 4 3 Power 1 | . . . . . . . . . . . . . . . . . 1 . Propulsion 2 | . . . . 1 . . . . . . . . . . . . . 1 Utility 6 | . . . . . . 1 . . . 1 . 1 1 1 . . . 1 Weapon 7 | . . . 1 . . 1 . . . 1 . . . . . . 3 1 Tool/Special . | . . . . . . . . . . . . . . . . . . . Average Slot Usage (%) 77 | . 100 79 87 88 70 89 88 92 92 92 92 92 93 89 85 67 72 59 Engine 5 | . 14 11 11 11 10 4 3 7 7 7 7 6 5 . . 3 . . Reactor 2 | . . . . . . . . . . . . . . . . . 4 7 Treads 5 | . 28 22 21 22 . . . . . . . . . . . . . . Flight 16 | . . . . . . 42 46 46 46 46 46 40 35 31 31 19 19 14 Device 9 | . 14 11 11 11 11 22 9 15 15 15 13 1 5 5 4 2 6 8 Storage 6 | . 14 11 11 11 11 1 . . . . . 4 5 5 5 4 4 3 Processor 13 | . . 2 11 11 11 2 13 15 15 15 16 25 23 21 21 20 16 13 Hackware 5 | . . . . . . . . . . . . 5 10 14 15 14 13 11 Energy Gun 7 | . 28 22 21 22 11 9 3 . . . . . . . . . . . Launcher 1 | . . . . . 9 . . . . . . . . . . . . . Slashing Weapon 1 | . . . . . . . 3 7 7 7 7 6 5 5 3 . 3 . Peak Build Rating 142 | 8 8 18 18 19 19 34 42 42 42 46 43 66 81 85 87 87 138 142 Average Rating 62 | 5 8 10 17 18 15 27 37 42 42 42 42 57 79 84 81 73 115 118 On Entrance 42 | . 8 8 18 18 19 15 31 42 42 42 43 43 66 81 85 59 79 114 Naked Turns . | . . . . . . . . . . . . . . . . . . . Heaviest Build 70 | 15 30 30 30 50 50 16 19 19 19 19 19 26 31 31 31 28 69 70 Greatest Support 63 | 40 40 40 40 40 40 22 26 26 26 28 28 34 33 33 40 39 63 63 Greatest Overweight (x) 16 | . . . 1 1 16 . . . . . . . . . 1 1 1 1 Average Overweight (x) . | . . . . . 4 . . . . . . . . . . . . . Largest Inventory Capacity 20 | 8 15 15 15 20 20 20 5 5 5 5 5 10 10 10 10 10 10 10 Average Capacity 11 | 6 14 15 15 15 20 6 5 5 5 5 5 8 10 10 10 10 10 9 Most Carried 17 | 7 8 11 15 15 17 16 3 4 4 5 5 10 10 10 10 9 10 10 Average Carried 9 | 2 7 8 14 14 16 5 2 3 4 4 5 7 9 9 9 7 8 8 Final Capacity 20 | 8 15 15 15 20 20 5 5 5 5 5 5 10 10 10 10 10 10 5 Final Carried 17 | 7 7 11 15 15 17 3 3 4 4 5 5 9 10 10 9 8 5 3 Class Distribution -------------------- 39% | Mutant 22% | Hacker-Sprinter 11% | Hacker-Mutant 7% | Scavenger-Sprinter 7% | Hacker-Scout 5% | Sprinter Dominant Class ---------------- Mutant | -10/Materials Mutant | -9/Materials Mutant | -9/Mines Mutant | -9/Exiles Mutant | -8/Mines Scavenger-Scout | -8/Materials Scavenger-Scout | -7/Factory Scavenger-Sprinter | -7/Lower Caves Scavenger-Sprinter | -7/Lower Caves Scavenger-Sprinter | -7/Zion Scavenger-Sprinter | -6/Proximity Caves Sprinter | -6/Factory Hacker-Sprinter | -5/Factory Hacker-Sprinter | -4/Factory Hacker-Sprinter | -4/DSF Hacker-Sprinter | -3/Research Hacker-Sprinter | -2/Research Hacker-Mutant | -1/Access Resources | -11 -10 -9 -9 -9 -8 -8 -7 -7 -7 -7 -6 -6 -5 -4 -4 -3 -2 -1 ----------- Run | Yrd Mat Mat Min Exi Min Mat Fac Low Low Zio Pro Fac Fac Fac DSF Res Res Acc Matter Collected 1548 | 270 6 . 53 . 62 53 67 107 58 82 20 95 15 . . 170 280 210 Remotely . | . . . . . . . . . . . . . . . . . . . Salvage Created 1469 | 137 59 . 126 . 228 53 60 107 . . . 213 15 . . . 297 174 Parts 110 | 16 5 . 8 . 25 2 8 4 . . . 6 3 . . . 15 18 Haulers Intercepted 5 | . . . . . . 1 1 . . . . 2 . . . . 1 . Recyclers Shooed . | . . . . . . . . . . . . . . . . . . . Parts Field Recycled . | . . . . . . . . . . . . . . . . . . . Retrieved Matter . | . . . . . . . . . . . . . . . . . . . Parts Self-Destructed 2 | . . . . . . . . . 2 . . . . . . . . . Prevented 3 | . . . . . . . . . 3 . . . . . . . . . Kills | -11 -10 -9 -9 -9 -8 -8 -7 -7 -7 -7 -6 -6 -5 -4 -4 -3 -2 -1 ------- Run | Yrd Mat Mat Min Exi Min Mat Fac Low Low Zio Pro Fac Fac Fac DSF Res Res Acc Combat Hostiles Destroyed 33 | . 2 . 3 . 17 . . . . . . . . . . . 3 8 Melee 4 | . 1 . . . . . . . . . . . . . . . 3 . Guns 8 | . . . 3 . 5 . . . . . . . . . . . . . Cannons 2 | . . . . . . . . . . . . . . . . . . 2 AOE 18 | . . . . . 12 . . . . . . . . . . . . 6 Classes Destroyed 11 | 2 1 . 1 . 2 1 1 . . . . . 1 . . . 1 1 Worker 3 | . . . . . . . 1 . . . . . . . . . . 2 Builder 3 | . . . . . 1 . . . . . . . . . . . . 2 Tunneler 5 | 3 . . 1 . 1 . . . . . . . . . . . . . Hauler 5 | . . . . . . 1 1 . . . . 2 . . . . 1 . Recycler 1 | 1 . . . . . . . . . . . . . . . . . . Operator 3 | . . . . . . . . . . . . . 1 . . . 2 . Watcher 1 | . . . . . . . . . . . . . . . . . 1 . Swarmer 23 | . . . . . 14 . . . . . . . . . . . 3 6 Cutter 2 | . . . . . . . . . . . . . . . . . . 2 Grunt 7 | . 2 . 2 . 3 . . . . . . . . . . . . . Duelist 1 | . . . 1 . . . . . . . . . . . . . . . Best Kill Streak 10 | 3 1 . 3 . 4 1 2 . . . . 1 1 . . . 3 10 Combat Bots Only 6 | . 1 . 3 . 4 . . . . . . . . . . . 3 6 Max Kills in Single Turn 4 | 2 1 . 1 . 3 1 1 . . . . 1 1 . . . 1 4 Gunslinging . | . . . . . . . . . . . . . . . . . . . Exploded 3 | . . . . . 3 . . . . . . . . . . . . 3 Melee 1 | . 1 . . . . . . . . . . . . . . . 1 . Uniques/NPCs Destroyed . | . . . . . . . . . . . . . . . . . . . Combat | -11 -10 -9 -9 -9 -8 -8 -7 -7 -7 -7 -6 -6 -5 -4 -4 -3 -2 -1 -------- Run | Yrd Mat Mat Min Exi Min Mat Fac Low Low Zio Pro Fac Fac Fac DSF Res Res Acc Hostile Shots Fired 584 | . 13 . 16 . 77 5 7 . 8 . . . . . 33 21 117 287 Missed 286 | . 1 . 3 . 22 2 5 . 7 . . . . . 19 12 59 156 Hits 298 | . 12 . 13 . 55 3 2 . 1 . . . . . 14 9 58 131 Melee 15 | . . . 4 . . . . . . . . . . . 9 . . 2 Projectile 283 | . 12 . 9 . 55 3 2 . 1 . . . . . 5 9 58 129 AOE 6 | . . . . . . 1 . . . . . . . . 4 . . 1 Critical Strikes 25 | . 2 . 2 . 2 . . . . . . . . . 8 1 2 8 Part Disruptions 1 | . . . . . . . . . . . . . . . . . . 1 Damage Taken 7142 | . 188 . 231 . 579 123 34 . 13 . . 82 . . 499 354 1687 3352 Core 2303 | . 31 . 47 . 145 40 22 . . . . . . . 130 79 202 1607 Absorbed by Shields 19 | . . . . . . . . . . . . . . . 19 . . . Core Remaining (%) 89 | 100 87 . . . 52 92 . . . . 96 100 100 . 88 93 86 . Volleys Fired 73 | 4 7 . 6 . 35 5 . . . . . . . . . . 2 14 Largest 2 | 2 2 . 2 . 2 1 . . . . . . . . . . 1 1 Hottest 122 | 100 100 . 122 . 122 61 . . . . . . . . . . 58 120 Shots Fired 97 | 8 14 . 11 . 43 5 . . . . . . . . . . 2 14 Gun 67 | 8 14 . 11 . 29 5 . . . . . . . . . . . . Cannon 13 | . . . . . . . . . . . . . . . . . 2 11 Launcher 17 | . . . . . 14 . . . . . . . . . . . . 3 Special . | . . . . . . . . . . . . . . . . . . . Kinetic 10 | . . . . . . . . . . . . . . . . . 2 8 Thermal 70 | 8 14 . 11 . 29 5 . . . . . . . . . . . 3 Explosive 17 | . . . . . 14 . . . . . . . . . . . . 3 Electromagnetic . | . . . . . . . . . . . . . . . . . . . Robot Hit Streak 9 | 2 8 . 9 . 3 2 . . . . . . . . . . . 6 Robot Miss Streak 3 | 2 2 . 1 . 3 2 . . . . . . . . . . . . Penetration Max . | . . . . . . . . . . . . . . . . . . . Secondary Targets 4 | . . . 2 . 2 . . . . . . . . . . . . . Max Gunslinging Chain 1 | . . . 1 . 1 . . . . . . . . . . . . . Shots Hit Robots 70 | 3 9 . 10 . 22 2 2 3 . . . 2 1 . . . 12 4 Core Hits 69 | 5 1 . 5 . 25 1 2 2 . . . 2 . . . . 7 19 Critical Kills . | . . . . . . . . . . . . . . . . . . . Critical Parts Destroyed . | . . . . . . . . . . . . . . . . . . . Critical Strikes 5 | 1 . . . . 2 . . . . . . . . . . . 2 . Burn 3 | 1 . . . . 2 . . . . . . . . . . . . . Sever 2 | . . . . . . . . . . . . . . . . . 2 . Melee Attacks 55 | . . . . . . . 2 3 . . . 10 1 . . . 39 . Impact . | . . . . . . . . . . . . . . . . . . . Slashing 55 | . . . . . . . 2 3 . . . 10 1 . . . 39 . Piercing . | . . . . . . . . . . . . . . . . . . . Sneak Attacks 7 | . . . . . . . 2 . . . . 2 . . . . 3 . Combat Hostiles . | . . . . . . . . . . . . . . . . . . . Follow-up Attacks . | . . . . . . . . . . . . . . . . . . . Damage Inflicted 4672 | 76 126 . 215 . 1303 40 210 292 . . . 258 77 . . . 955 1120 Guns 708 | 76 112 . 200 . 280 40 . . . . . . . . . . . . Cannons 123 | . . . . . . . . . . . . . . . . . . 123 Explosions 1993 | . . . . . 1023 . . . . . . . . . . . . 970 Melee 1792 | . . . . . . . 210 292 . . . 258 77 . . . 955 . Ramming 56 | . 14 . 15 . . . . . . . . . . . . . . 27 Kinetic . | . . . . . . . . . . . . . . . . . . . Thermal 831 | 76 112 . 200 . 280 40 . . . . . . . . . . . 123 Explosive 1993 | . . . . . 1023 . . . . . . . . . . . . 970 Electromagnetic . | . . . . . . . . . . . . . . . . . . . Impact . | . . . . . . . . . . . . . . . . . . . Slashing 1792 | . . . . . . . 210 292 . . . 258 77 . . . 955 . Piercing . | . . . . . . . . . . . . . . . . . . . Highest Corruption 16 | . . . . . . . . . . . . . . . . 1 . 16 Average Corruption 3 | . . . . . . . . . . . . . . . . 1 . 4 Corruption Purged . | . . . . . . . . . . . . . . . . . . . Corruption Blocked 7 | . . . . . . . . . . . . . . . . . 7 . Effects 11 | . . . . . . . . . . . . . . . . 1 . 10 Message Errors 4 | . . . . . . . . . . . . . . . . 1 . 3 Heat Flow Errors 1 | . . . . . . . . . . . . . . . . . . 1 Energy Discharges 1 | . . . . . . . . . . . . . . . . . . 1 Data Loss (minor) 3 | . . . . . . . . . . . . . . . . . . 3 Data Loss (major) 1 | . . . . . . . . . . . . . . . . . . 1 Alerts 1 | . . . . . . . . . . . . . . . . . . 1 Overload Shots . | . . . . . . . . . . . . . . . . . . . Overflow Damage 366 | . 6 . . . 77 . . 49 . . . . 67 . . . 142 25 Projectiles 25 | . . . . . . . . . . . . . . . . . . 25 Explosions 77 | . . . . . 77 . . . . . . . . . . . . . Melee 264 | . 6 . . . . . . 49 . . . . 67 . . . 142 . Knockbacks . | . . . . . . . . . . . . . . . . . . . Impact . | . . . . . . . . . . . . . . . . . . . Kinetic . | . . . . . . . . . . . . . . . . . . . Secondary . | . . . . . . . . . . . . . . . . . . . Self-Inflicted Damage 124 | . . . . . 82 . . . . . . . . . . . . 42 Shots 4 | . . . . . 3 . . . . . . . . . . . . 1 Rammed 10 | . 1 . 2 . . . . . . . . . . . . . . 7 Targets Rammed 12 | . 2 . 3 . . . . . . . . . . . . . . 7 Kicked . | . . . . . . . . . . . . . . . . . . . Crushed 2 | . 1 . 1 . . . . . . . . . . . . . . . Highest Temperature 304 | 78 264 . 234 . 304 90 117 219 252 291 186 109 21 4 . . 24 246 Average Temperature 66 | 30 147 . 96 . 121 23 45 91 129 88 76 26 9 1 . . 11 65 Received Heat Transfer 459 | . 141 . 54 . 90 18 . . 9 . . . . . . 21 81 45 Effects 5 | . . . . . 1 . . . . 4 . . . . . . . . Energy Bleed 1 | . . . . . . . . . . 1 . . . . . . . . Interference 4 | . . . . . 1 . . . . 3 . . . . . . . . Siege Activations . | . . . . . . . . . . . . . . . . . . . Martial Activations . | . . . . . . . . . . . . . . . . . . . Shielding Activations . | . . . . . . . . . . . . . . . . . . . Robots Disrupted . | . . . . . . . . . . . . . . . . . . . Combat Hostiles . | . . . . . . . . . . . . . . . . . . . Robots Corrupted 1 | . 1 . . . . . . . . . . . . . . . . . Combat Hostiles 1 | . 1 . . . . . . . . . . . . . . . . . Parts Fried . | . . . . . . . . . . . . . . . . . . . Impact Corruptions 1 | . 1 . . . . . . . . . . . . . . . . . Robots Melted . | . . . . . . . . . . . . . . . . . . . Combat Hostiles . | . . . . . . . . . . . . . . . . . . . Parts Melted 5 | . . . 2 . 3 . . . . . . . . . . . . . Heat Transferred 1850 | 296 333 . 370 . 666 74 . . . . . . . . . . . 111 Parts Sabotaged . | . . . . . . . . . . . . . . . . . . . Parts Stolen . | . . . . . . . . . . . . . . . . . . . Parts Stripped . | . . . . . . . . . . . . . . . . . . . Power Chain Reactions . | . . . . . . . . . . . . . . . . . . . Alert | -11 -10 -9 -9 -9 -8 -8 -7 -7 -7 -7 -6 -6 -5 -4 -4 -3 -2 -1 ------- Run | Yrd Mat Mat Min Exi Min Mat Fac Low Low Zio Pro Fac Fac Fac DSF Res Res Acc Maximum Alert Level 1 | . . . . . 1 . . . . . . . . . . . . 1 Low Security (%) 97 | 100 100 100 100 . 87 100 100 . . . . 100 100 100 100 100 100 96 Level 1 2 | . . . . . 12 . . . . . . . . . . . . 3 Level 2 . | . . . . . . . . . . . . . . . . . . . Level 3 . | . . . . . . . . . . . . . . . . . . . Level 4 . | . . . . . . . . . . . . . . . . . . . Level 5 . | . . . . . . . . . . . . . . . . . . . High Security . | . . . . . . . . . . . . . . . . . . . Max Security . | . . . . . . . . . . . . . . . . . . . Peak Influence 240 | 10 40 8 60 . 240 52 27 . . . . 15 2 . 15 125 96 214 Initial 69 | . . 8 . . . 52 . . . . . . 2 . . . 69 . Average 43 | 2 10 1 5 . 140 19 3 . . . . 1 . . 2 21 17 79 Influence Increases 2063 | 20 54 . 75 . 531 24 27 . 165 . . 41 5 . 15 180 321 605 Destroy 0b10 Robot/C 660 | . 40 . 60 . 340 . . . . . . . . . . . 60 160 Destroy 0b10 Robot/NC 105 | 20 . . 5 . 10 5 10 . . . . 10 5 . . . 20 20 Destroy Leader 102 | . 10 . 10 . 50 2 2 . . . . 4 . . . . 4 20 Successful Hack 55 | . 4 . . . . 2 . . . . . 4 . . . . 15 30 Disable Machine 45 | . . . . . 15 15 . . . . . . . . . . . 15 Destroy Structure 256 | . . . . . 86 . . . . . . 8 . . . . 72 90 Partial Spotted 105 | . . . . . . . 15 . . . . 15 . . . 15 60 . Lose Combat Pursuer 735 | . . . . . 30 . . . 165 . . . . . 15 165 90 270 Influence Decreases 1887 | 20 34 20 75 . 396 159 10 17 20 145 . 34 12 . 15 55 446 429 Entered New Map 309 | . . 12 . . . 83 . 8 . 145 . . 5 . . . 56 . Time Decay 1231 | 20 34 8 75 . 346 76 10 9 20 . . 33 7 . . 30 324 239 Lost Part 346 | . . . . . 50 . . . . . . . . . 15 25 66 190 Lost Ally 1 | . . . . . . . . . . . . 1 . . . . . . Squads Dispatched 31 | . . 2 . . . 2 1 . . . . 1 . . 2 3 9 11 Investigation 4 | . . 1 . . . . 1 . . . . . . . . . 1 1 Extermination 15 | . . . . . . . . . . . . 1 . . . 1 6 7 Reinforcement 12 | . . 1 . . . 2 . . . . . . . . 2 2 2 3 Assault . | . . . . . . . . . . . . . . . . . . . Garrison . | . . . . . . . . . . . . . . . . . . . Intercept . | . . . . . . . . . . . . . . . . . . . Searches Triggered . | . . . . . . . . . . . . . . . . . . . Construction Impeded 1 | . . . . . . . . . . . . . . . . . . 1 Haulers Reinforced . | . . . . . . . . . . . . . . . . . . . Active Scanning Responses . | . . . . . . . . . . . . . . . . . . . Cargo Convoy Interrupts . | . . . . . . . . . . . . . . . . . . . Stealth | -11 -10 -9 -9 -9 -8 -8 -7 -7 -7 -7 -6 -6 -5 -4 -4 -3 -2 -1 --------- Run | Yrd Mat Mat Min Exi Min Mat Fac Low Low Zio Pro Fac Fac Fac DSF Res Res Acc Distress Signals 12 | . 1 3 . . . 1 . . . . . . . . . 1 . 6 Communications Jammed . | . . . . . . . . . . . . . . . . . . . Distress Signals . | . . . . . . . . . . . . . . . . . . . Times Spotted 212 | . 4 1 2 . 18 7 5 . 10 . . 1 1 . 11 23 46 83 Peak Tracking Total 27 | . 2 2 2 . 4 4 5 . 11 . . 1 1 . 10 15 7 27 Tactical Retreats 33 | . . . . . 1 . . . 2 . . . . . 1 2 12 15 Traps | -11 -10 -9 -9 -9 -8 -8 -7 -7 -7 -7 -6 -6 -5 -4 -4 -3 -2 -1 ------- Run | Yrd Mat Mat Min Exi Min Mat Fac Low Low Zio Pro Fac Fac Fac DSF Res Res Acc Traps Triggered 9 | . . 1 . . . . . . . . . 3 . . 1 1 2 1 Indirectly . | . . . . . . . . . . . . . . . . . . . Trap Hack Attempts . | . . . . . . . . . . . . . . . . . . . Triggered . | . . . . . . . . . . . . . . . . . . . Disarmed . | . . . . . . . . . . . . . . . . . . . Reprogrammed . | . . . . . . . . . . . . . . . . . . . Reused . | . . . . . . . . . . . . . . . . . . . Traps Extracted . | . . . . . . . . . . . . . . . . . . . Installed 4 | . . . . . . 4 . . . . . . . . . . . . Triggered . | . . . . . . . . . . . . . . . . . . . Most Traps Carried 4 | . . . 4 4 4 4 . . . . . . . . . . . . Machines | -11 -10 -9 -9 -9 -8 -8 -7 -7 -7 -7 -6 -6 -5 -4 -4 -3 -2 -1 ---------- Run | Yrd Mat Mat Min Exi Min Mat Fac Low Low Zio Pro Fac Fac Fac DSF Res Res Acc Machines Disabled 3 | . . . . . 1 1 . . . . . . . . . . . 1 Max in Single Turn 1 | . . . . . 1 1 . . . . . . . . . . . 1 Garrison Access 1 | . . . . . . . . . . . . . . . . . 1 . Machines Repaired . | . . . . . . . . . . . . . . . . . . . Machines Dismantled . | . . . . . . . . . . . . . . . . . . . Machines Sabotaged . | . . . . . . . . . . . . . . . . . . . Overloaded Fab Kills . | . . . . . . . . . . . . . . . . . . . Hacking | -11 -10 -9 -9 -9 -8 -8 -7 -7 -7 -7 -6 -6 -5 -4 -4 -3 -2 -1 --------- Run | Yrd Mat Mat Min Exi Min Mat Fac Low Low Zio Pro Fac Fac Fac DSF Res Res Acc Machines Accessed 25 | . 2 . 1 1 . 2 1 . . 1 . 6 1 1 . 1 6 2 Terminals 17 | . 2 . 1 . . 1 . . . . . 4 . 1 . 1 5 2 Fabricators 2 | . . . . . . . . . . . . 2 . . . . . . Repair Stations . | . . . . . . . . . . . . . . . . . . . Recycling Units . | . . . . . . . . . . . . . . . . . . . Scanalyzers 1 | . . . . . . 1 . . . . . . . . . . . . Garrison Access 3 | . . . . . . . 1 . . . . . 1 . . . 1 . Total Hacks 47 | . 4 . 1 1 . 3 3 . . 4 . 10 2 1 . 2 12 4 Successful 22 | . 3 . . 1 . 3 . . . 4 . 3 . 1 . . 5 2 Failed 25 | . 1 . 1 . . . 3 . . . . 7 2 . . 2 7 2 Catastrophic 7 | . . . 1 . . . 1 . . . . 1 . . . . 3 1 Database Lockouts . | . . . . . . . . . . . . . . . . . . . Manual 26 | . 4 . 1 1 . 1 . . . . . 5 . . . 2 8 4 Terminals 29 | . 4 . 1 . . 1 . . . . . 5 . 1 . 2 11 4 Fabricators 5 | . . . . . . . . . . . . 5 . . . . . . Repair Stations . | . . . . . . . . . . . . . . . . . . . Recycling Units . | . . . . . . . . . . . . . . . . . . . Scanalyzers 2 | . . . . . . 2 . . . . . . . . . . . . Garrison Access 6 | . . . . . . . 3 . . . . . 2 . . . 1 . Terminal Hacks 11 | . . . . 1 . 1 . . . 4 . 1 . 1 . . 3 . Record 3 | . . . . . . . . . . . . . . . . . 3 . Part Schematic 4 | . . . . . . . . . . 4 . . . . . . . . Open DSF 2 | . . . . . . . . . . . . 1 . 1 . . . . Zone Layout 1 | . . . . . . 1 . . . . . . . . . . . . Proto ID Catalog 1 | . . . . 1 . . . . . . . . . . . . . . Fabricator Hacks 1 | . . . . . . . . . . . . 1 . . . . . . Load Schematic 1 | . . . . . . . . . . . . 1 . . . . . . Repair Station Hacks . | . . . . . . . . . . . . . . . . . . . Recycling Unit Hacks . | . . . . . . . . . . . . . . . . . . . Scanalyzer 2 | . . . . . . 2 . . . . . . . . . . . . Insert Component 1 | . . . . . . 1 . . . . . . . . . . . . Analyze 1 | . . . . . . 1 . . . . . . . . . . . . Garrison Access Hacks 1 | . . . . . . . . . . . . . . . . . 1 . Seal Access 1 | . . . . . . . . . . . . . . . . . 1 . Unauthorized Hacks 6 | . 2 . . . . . . . . . . 1 . . . . 1 2 Terminals 6 | . 2 . . . . . . . . . . 1 . . . . 1 2 Assimilate 4 | . . . . . . . . . . . . 1 . . . . 1 2 Skim 2 | . 2 . . . . . . . . . . . . . . . . . Fabricators . | . . . . . . . . . . . . . . . . . . . Repair Stations . | . . . . . . . . . . . . . . . . . . . Recycling Units . | . . . . . . . . . . . . . . . . . . . Scanalyzers . | . . . . . . . . . . . . . . . . . . . Garrison Access . | . . . . . . . . . . . . . . . . . . . Data Cores Recovered 2 | . . . . . . . . . . . . . 1 . . . 1 . Used . | . . . . . . . . . . . . . . . . . . . Hacking Detections 17 | . 1 . 1 . . 1 1 . . . . 4 1 . . 1 5 2 Full Trace Events 3 | . . . . . . . 1 . . . . . . . . . 1 1 Feedback Events 1 | . . . . . . . . . . . . . . . . . . 1 Corruption 1 | . . . . . . . . . . . . . . . . . . 1 Feedback Blocked . | . . . . . . . . . . . . . . . . . . . Robot Schematics Acquired . | . . . . . . . . . . . . . . . . . . . Robots Built . | . . . . . . . . . . . . . . . . . . . Authchips . | . . . . . . . . . . . . . . . . . . . Time . | . . . . . . . . . . . . . . . . . . . Total Robot Build Rating . | . . . . . . . . . . . . . . . . . . . Part Schematics Acquired 5 | . . . . . . 1 . . . 4 . . . . . . . . Parts Built . | . . . . . . . . . . . . . . . . . . . Authchips . | . . . . . . . . . . . . . . . . . . . Time . | . . . . . . . . . . . . . . . . . . . Total Part Build Rating . | . . . . . . . . . . . . . . . . . . . Parts Repaired . | . . . . . . . . . . . . . . . . . . . Time . | . . . . . . . . . . . . . . . . . . . Parts Recycled . | . . . . . . . . . . . . . . . . . . . Recycled Matter . | . . . . . . . . . . . . . . . . . . . Retrieved Matter . | . . . . . . . . . . . . . . . . . . . Retrieved Components . | . . . . . . . . . . . . . . . . . . . Parts Scanalyzed 1 | . . . . . . 1 . . . . . . . . . . . . Part Schematics Acquired 1 | . . . . . . 1 . . . . . . . . . . . . Parts Damaged . | . . . . . . . . . . . . . . . . . . . Bothacking | -11 -10 -9 -9 -9 -8 -8 -7 -7 -7 -7 -6 -6 -5 -4 -4 -3 -2 -1 ------------ Run | Yrd Mat Mat Min Exi Min Mat Fac Low Low Zio Pro Fac Fac Fac DSF Res Res Acc Used RIF Installer . | . . . . . . . . . . . . . . . . . . . Robots Hacked . | . . . . . . . . . . . . . . . . . . . Non-combat . | . . . . . . . . . . . . . . . . . . . Combat . | . . . . . . . . . . . . . . . . . . . Robot Hacks Applied . | . . . . . . . . . . . . . . . . . . . Relay Couplers Released . | . . . . . . . . . . . . . . . . . . . Fabnet Peak Effective % . | . . . . . . . . . . . . . . . . . . . Robots Rewired . | . . . . . . . . . . . . . . . . . . . Allies Hacked . | . . . . . . . . . . . . . . . . . . . Hacks Repelled . | . . . . . . . . . . . . . . . . . . . Allies | -11 -10 -9 -9 -9 -8 -8 -7 -7 -7 -7 -6 -6 -5 -4 -4 -3 -2 -1 -------- Run | Yrd Mat Mat Min Exi Min Mat Fac Low Low Zio Pro Fac Fac Fac DSF Res Res Acc Total Allies 3 | . . . . . . . . . . . . 1 . . . . 1 1 Largest Group 1 | . . . . . . . . . . . . 1 . . . . 1 1 Highest-Rated Group 45 | . . . . . . . . . . . . 10 . . . . 45 45 Highest-Rated Ally 45 | . . . . . . . . . . . . 10 . . . . 45 45 Total Orders . | . . . . . . . . . . . . . . . . . . . Ally Attacks . | . . . . . . . . . . . . . . . . . . . Total Damage . | . . . . . . . . . . . . . . . . . . . Kills . | . . . . . . . . . . . . . . . . . . . Allies Corrupted . | . . . . . . . . . . . . . . . . . . . Allies Melted . | . . . . . . . . . . . . . . . . . . . Intel | -11 -10 -9 -9 -9 -8 -8 -7 -7 -7 -7 -6 -6 -5 -4 -4 -3 -2 -1 ------- Run | Yrd Mat Mat Min Exi Min Mat Fac Low Low Zio Pro Fac Fac Fac DSF Res Res Acc Active Infowar (turns) 6686 | 42 193 140 827 478 807 214 95 79 62 233 83 397 66 87 91 232 1254 1306 Optics 3967 | . . . . . . . 95 79 62 215 83 397 66 87 91 232 1254 1306 Sensors 163 | . . . . . . 163 . . . . . . . . . . . . IFF 1 | . . . . . . . . . . . . . 1 . . . . . Terrain 1302 | . . . . . . 138 27 79 62 233 83 125 . . . 46 . 509 Seismic 2541 | 42 193 140 827 478 807 54 . . . . . . . . . . . . ECM 1960 | . . . . . . . . . . . . . . . . . 814 1146 Robot Analysis Total . | . . . . . . . . . . . . . . . . . . . Derelict Logs Recovered 3 | . . . 1 . . . . 1 . 1 . . . . . . . . Drone Launches . | . . . . . . . . . . . . . . . . . . . Drone Recoveries . | . . . . . . . . . . . . . . . . . . . Exploration | -11 -10 -9 -9 -9 -8 -8 -7 -7 -7 -7 -6 -6 -5 -4 -4 -3 -2 -1 ------------- Run | Yrd Mat Mat Min Exi Min Mat Fac Low Low Zio Pro Fac Fac Fac DSF Res Res Acc Turns Passed 6815 | 151 193 140 827 478 807 227 102 79 62 233 83 397 66 87 91 232 1254 1306 Spaces Moved 10918 | 83 96 82 423 284 295 432 324 285 257 778 274 1003 206 235 124 612 2463 2662 Core 108 | 9 . . . . 42 . . . . . . . . . . . . 57 Treads 960 | 74 96 82 423 284 1 . . . . . . . . . . . . . Legs . | . . . . . . . . . . . . . . . . . . . Wheels 252 | . . . . . 252 . . . . . . . . . . . . . Hover . | . . . . . . . . . . . . . . . . . . . Flight 9598 | . . . . . . 432 324 285 257 778 274 1003 206 235 124 612 2463 2605 Fastest Speed 19 | 50 160 160 160 160 130 27 24 24 24 24 24 21 21 21 19 26 25 25 Average Speed 46 | 148 160 160 160 167 244 27 24 24 24 24 24 22 21 21 23 27 29 34 Slowest Speed 850 | 160 160 160 240 240 850 28 24 24 24 24 24 24 21 21 100 103 114 125 Overloaded Moves . | . . . . . . . . . . . . . . . . . . . Propulsion Burnouts . | . . . . . . . . . . . . . . . . . . . Robots Hopped 74 | . . . . . . 3 . . . . . . . . 1 21 12 37 Potential Cave-ins . | . . . . . . . . . . . . . . . . . . . Cave-ins Triggered . | . . . . . . . . . . . . . . . . . . . Exploration Rate (%) 41 | 4 20 10 84 69 68 32 13 47 56 80 43 28 6 9 81 27 56 54 Regions Visited 18 Branch Regions 7 Pre-discovered Areas 4 | . . . 1 . . . . . . 3 . . . . . . . . Known Exits Taken 10 | . . . . . . 1 1 1 1 1 1 1 1 1 . 1 . . Unknown Exits Taken 7 | 1 1 1 1 1 1 . . . . . . . . . . . 1 . Scrap Searched 8 | . . . 1 . . . . 1 1 2 3 . . . . . . . Spaces Dug 39 | . . . . . . . . . . . . 8 . . . . 25 6 Terrain Destroyed 207 | . . . . . 137 . . . . . . 8 . . . . 25 37 Melee 31 | . . . . . . . . . . . . 8 . . . . 23 . Projectile 8 | . . . . . . . . . . . . . . . . . 2 6 AOE 168 | . . . . . 137 . . . . . . . . . . . . 31 Terrain Rammed . | . . . . . . . . . . . . . . . . . . . Walls Destroyed . | . . . . . . . . . . . . . . . . . . . Machines Disabled . | . . . . . . . . . . . . . . . . . . . Actions | -11 -10 -9 -9 -9 -8 -8 -7 -7 -7 -7 -6 -6 -5 -4 -4 -3 -2 -1 --------- Run | Yrd Mat Mat Min Exi Min Mat Fac Low Low Zio Pro Fac Fac Fac DSF Res Res Acc Total 12416 | 100 120 89 559 287 345 533 342 288 256 825 289 1152 226 272 182 650 2910 2991 Wait 1108 | . 14 1 120 . 8 60 9 . . 36 12 88 5 32 51 42 334 296 Move 10759 | 82 95 81 422 283 294 425 323 284 256 777 273 1002 205 234 121 573 2438 2591 Hop 67 | . . . . . . 3 . . . . . . . . 1 17 12 34 Pick Up 70 | 7 . 2 5 1 5 4 1 1 . 5 1 8 5 2 . 2 14 7 Fast Attach 52 | 7 . 2 2 . . 3 3 . . . . 1 . . 3 3 19 9 Attach 56 | . . . . . 3 7 1 . . . . 3 3 2 1 7 15 14 Detach 25 | . . 1 . . . 2 . . . . . 1 1 1 . 3 7 9 Swap 39 | . 1 2 . 1 . 8 1 . . 2 2 6 4 . 1 3 5 3 Drop 62 | . 1 . 1 2 . 12 2 . . 5 1 3 2 1 . . 25 7 Fire 73 | 4 7 . 6 . 35 5 . . . . . . . . . . 2 14 Melee 55 | . . . . . . . 2 3 . . . 10 1 . . . 39 . Ram 7 | . . . . . . . . . . . . . . . . . . 7 Kick . | . . . . . . . . . . . . . . . . . . . Crush 5 | . 2 . 3 . . . . . . . . . . . . . . . Escape Stasis 34 | . . . . . . . . . . . . 30 . . 4 . . . Rewire . | . . . . . . . . . . . . . . . . . . . Trap 4 | . . . . . . 4 . . . . . . . . . . . . Miscellaneous . | . . . . . . . . . . . . . . . . . . . Route ------- -11/Scrapyard -10/Materials -9/Materials -9/Mines (discovered 4 exits: *Mat x2 / *Exi / *Zio) -9/Exiles -8/Mines -8/Materials -7/Factory -7/Lower Caves -7/Lower Caves (discovered 2 exits: *Fac / *Zio) -7/Zion -6/Proximity Caves -6/Factory -5/Factory -4/Factory -4/DSF -3/Research -2/Research (discovered 2 exits: *Acc / *Tes) -1/Access History --------- Turn | Location | Event 7 | -11/Scrapyard | Discovered new exit (range 15) 152 | -11/Scrapyard | Entered Materials 313 | -10/Materials | Build established: Mutant 314 | -10/Materials | Discovered new exit (range 16) 345 | -10/Materials | Entered another Materials area 345 | -9/Materials | Evolved 2 slots: Propulsion x1, Utility x1 408 | -9/Materials | Discovered new exit (range 12) 485 | -9/Materials | Entered Mines 653 | -9/Mines | Found a hidden stash of uninstalled traps 726 | -9/Mines | A Derelict revealed a hidden shortcut to a safe place 798 | -9/Mines | Assembled infested the area 803 | -9/Mines | Assisted by a Guerilla fighting off Assembled 1098 | -9/Mines | Learned location of Zion (-7) 1240 | -9/Mines | Discovered new exit (range 9) 1261 | -9/Mines | Discovered new exit (range 9) 1280 | -9/Mines | Received a Rocket Launcher from a helpful Derelict 1304 | -9/Mines | Deemed a non-threat by the Exiles lab entrance 1305 | -9/Mines | Discovered new exit (range 5) 1312 | -9/Mines | Entered Exiles 1352 | -9/Exiles | Met 8R-AWN 1380 | -9/Exiles | Met EX-HEX 1437 | -9/Exiles | Met EX-DEC 1484 | -9/Exiles | Met EX-BIN 1503 | -9/Exiles | Aligned with FarCom system 1504 | -9/Exiles | Given EX-Vault access code 1548 | -9/Exiles | Opened EX-Vault 1571 | -9/Exiles | Found PSU Rigger 1602 | -9/Exiles | Warned to stay clear of 0b10 Research branches 1771 | -9/Exiles | Discovered new exit (range 10) 1790 | -9/Exiles | Left Exiles lab with PSU Rigger 1790 | -9/Exiles | Entered Mines 1850 | -8/Mines | Lost 4 parts (1p2n1w) 2427 | -8/Mines | Discovered new exit (range 10) 2597 | -8/Mines | Entered Materials 2597 | -8/Materials | Evolved 2 slots: Propulsion x2 2819 | -8/Materials | Discovered new exit (range 16) 2824 | -8/Materials | Identified exit to Factory 2824 | -8/Materials | Entered Factory 2824 | -7/Factory | Evolved 2 slots: Propulsion x1, Utility x1 2918 | -7/Factory | Discovered new exit (range 16) 2921 | -7/Factory | Identified exit to Lower Caves 2926 | -7/Factory | Entered Lower Caves 2949 | -7/Lower Caves | Learned Factory garrison access intel 2976 | -7/Lower Caves | Encountered a Warlord checkpoint 3000 | -7/Lower Caves | Discovered new exit (range 5) 3004 | -7/Lower Caves | Identified exit to Lower Caves 3005 | -7/Lower Caves | Entered another Lower Caves area 3006 | -7/Lower Caves | Discovered new exit (range 7) 3020 | -7/Lower Caves | Encountered a Warlord checkpoint 3065 | -7/Lower Caves | Discovered new exit (range 9) 3067 | -7/Lower Caves | Identified exit to Zion 3067 | -7/Lower Caves | Entered Zion 3133 | -7/Zion | Given the Hacking Drone Bay 3134 | -7/Zion | Found Prototype Device 3157 | -7/Zion | Learned location of Quarantine (-3) 3230 | -7/Zion | Build established: Scavenger-Sprinter 3231 | -7/Zion | Rebuked by Imprinter 3263 | -7/Zion | Learned Factory terminal intel 3271 | -7/Zion | Learned Factory terminal intel 3283 | -7/Zion | Learned location of Warlord (-4) 3296 | -7/Zion | Discovered new exit (range 13) 3300 | -7/Zion | Identified exit to Proximity Caves 3300 | -7/Zion | Entered Proximity Caves 3382 | -6/Proximity Caves | Discovered new exit (range 4) 3382 | -6/Proximity Caves | Identified exit to Factory 3383 | -6/Proximity Caves | Entered Factory 3383 | -6/Factory | Evolved 2 slots: Utility x2 3384 | -6/Factory | Loaded intel: 26 terminal locations 3385 | -6/Factory | Loaded intel: 3 garrison access locations 3760 | -6/Factory | Discovered new exit (range 19) 3780 | -6/Factory | Identified exit to Factory 3780 | -6/Factory | Entered another Factory area 3780 | -5/Factory | Evolved 2 slots: Utility x2 3781 | -5/Factory | Loaded intel: 28 terminal locations 3835 | -5/Factory | Discovered new exit (range 14) 3843 | -5/Factory | Identified exit to Factory 3846 | -5/Factory | Entered another Factory area 3846 | -4/Factory | Evolved 2 slots: Propulsion x1, Utility x1 3932 | -4/Factory | Identified exit to DSF 3933 | -4/Factory | Entered DSF 3989 | -4/DSF | Additional patrols routed to DSF 4017 | -4/DSF | Discovered new exit (range 21) 4024 | -4/DSF | Identified exit to Research 4024 | -4/DSF | Entered Research 4024 | -3/Research | Evolved 2 slots: Propulsion x1, Utility x1 4052 | -3/Research | Lost 5 parts (4n1w) 4070 | -3/Research | Build established: Hacker-Sprinter 4119 | -3/Research | Spotted B-86 Titan 4253 | -3/Research | Discovered new exit (range 9) 4255 | -3/Research | Identified exit to Research 4256 | -3/Research | Entered another Research area 4256 | -2/Research | Evolved 2 slots: Power x1, Utility x1 4268 | -2/Research | Identified Hacking Drone Bay 4274 | -2/Research | Discovered new exit (range 7) 4276 | -2/Research | Identified exit to Testing 4351 | -2/Research | Found Prototype Processor 4401 | -2/Research | Identified Exp. Signal Interpreter 4451 | -2/Research | Found Prototype Device 4451 | -2/Research | Identified Exp. Actuator Array 4602 | -2/Research | Spotted B-90 Cyclops 4724 | -2/Research | Lost 3 parts (1p1u1w) 4792 | -2/Research | Spotted B-90 Cyclops 4887 | -2/Research | Found Adv. Force Booster 4998 | -2/Research | Spotted B-90 Cyclops 5153 | -2/Research | Found Adv. Force Booster 5173 | -2/Research | Found Fusion Bomb Launcher 5271 | -2/Research | Spotted B-90 Cyclops 5407 | -2/Research | Lost 5 parts (1p2n1u1w) 5505 | -2/Research | Discovered new exit (range 9) 5510 | -2/Research | Entered Access 5510 | -1/Access | Evolved 2 slots: Utility x2 5656 | -1/Access | Build established: Hacker-Mutant 6282 | -1/Access | Spotted B-99 Colossus 6329 | -1/Access | Found Prototype Device 6329 | -1/Access | Identified Exp. EM Disruption Field 6334 | -1/Access | Spotted B-99 Colossus 6461 | -1/Access | Build established: Hacker-Scout 6735 | -1/Access | System corruption reached 10% 6769 | -1/Access | Lost 17 parts (3p6n8u) 6788 | -1/Access | Core integrity fell below 50% 6795 | -1/Access | Core integrity fell below 20% 6816 | -1/Access | Destroyed by S-43 Plague with Heavy Machine Gun Last Messages --------------- 06735_ Adv. ECM Suite destroyed. 06737_ Anti-Orbital Battery disabled. 06738_ Mak. Hacking Suite destroyed. 06739_ T-07 Excavator destroyed. 06742_ 8Y3|SJ,XDV9QK7O3/ 06744_ K-01 Serf cleans the Terminal. 06749_ K-01 Serf cleans the Wave Collapse Detector. 06779_ Impulse Thruster destroyed. 06782_ P-80 Master resets P-80 Master, system corruption cleaned. 06782_ Adv. Surge Thruster destroyed. 06785_ P-80 Master resets P-80 Master, system corruption cleaned. 06787_ P-80 Master resets S-43 Plague, system corruption cleaned. 06787_ P-80 Master resets P-80 Master, system corruption cleaned. 06791_ Slammed into K-01 Serf. 06791_ P-80 Master resets P-80 Master, system corruption cleaned. 06794_ Slammed into K-01 Serf. 06801_ W-44 Eye sends out distress signal. 06803_ Slammed into K-01 Serf. 06807_ Slammed into R-10 Processor. 06807_ Penetrated by Slug. Map ----- +----------------------------------------------------+ | ??????????! ?# + #?????# | | ??????????? ?# # = #?????# #? | | ???????????? # #! #?????# #? | | ????????????? # ##################### #? | | ?????????????? + ##= / #? | | ???????????????# ## #### ##????? | | ????????????## ## #??# #?????? | | ########## # " #??# " +?????? | | # """ =#??# """ #?????? | | + """ #??# """ #?????? | | # " #??# " #?????? | | ########## # #??# #?????? | | ?????????????### ### [ #??# ! #?????? | | ????????????????# #?##########??# #?????? | | ????????#####???# #?????????????######## #?????? | | ????????# ??# #?????????????#####??# #####?? | | ????????# ] ### #########?????# = ?# #?? | | ????????# #?????# ?# #?? | | ????????# # #?????# # #?? | | ????????# ????# #?????# # #?? | | ??????????????# "" #?????# + #?? | | ??????????????# % "" #?????# # #?? | | ??????????????# """" ############## #######?? | | ??????????????# """" #???????? | | ??????????????# """ ################???????? | | ??????????????# """" @#??????????????????????? | | ??????????????# "" #??????????????????????? | | ???????????#### k"" #??????????????????????? | | ???????????# s#??????????????????????? | | ???????????# s #??????????????????????? | | ???????????# s #??????????????????????? | | ???????????# ##s###??????????????????????? | | ?#######???# ##s#????????????????????????? | | ?# ???# ##s#????????????????????????? | | ?#! ??# ##s#????????????????????????? | | ?# ??# ## #????????????????????????? | | ?# " ## ##s#????????????????????????? | | ?# """ # ## #????????????????????????? | | ?# """ + ##s#????????????????????????? | | ?# " # ##s#????????????????????????? | | ?# # ## #????????????????????????? | | ?# ! =?#############p#????????????????????????? | | ?########??# ????###Y###????????????#"""#?????? | | ???????????# ??# #????????????# ####### | | ???????????# # "" #????????????# # | | ???????????# / "T ######???????# # | | ???????????# ] # ## ####### # | | ???????????# # ## # | | ???????????# ?### #### + """ | | ???????????# !! ????# #??# # """ | +----------------------------------------------------+ Best States ------------- Heat Dissipation 52 Energy Generation 49 Energy Capacity 600 Matter Stores 300 Matter Capacity 300 Sight Range 23 Robot Scan Range 15 Terrain Scan Range 24 Terrain Scan Density 335 ECM Strength 2 Corruption Block 20 Phase Shifting 5 Evasion (%) 75 Targeting Accuracy 8 Melee Accuracy 6 Recoil Reduction 2 Offensive Hacking 44 Item Schematics ----------------- Imp. VTOL Module | -8/Materials | Scanalyzed Flamer | -7/Zion | Free Beamcaster | -7/Zion | Free Hvy. Riot Gun | -7/Zion | Free Plasma Flamer | -7/Zion | Free Robot Schematics ------------------ None Fabricated ------------ Nothing Repaired ---------- Nothing Alien Tech Used ----------------- None Achievements -------------- None Challenges ------------ None Game ------ Seed FortressAutogunCarapace Manual? 0 Play Time 01:16:23 Cumulative 139.3 hours Start 2025.07.09 @ 19:39:06 End 2025.07.09 @ 21:08:44 Sessions 1 Manual Loads 0 Difficulty Rogue Special Mode None Game No. 362 Rogue 362 Adventurer 0 Explorer 0 Win Type - Total 4 Types 3/0/1/0/0/0/0/0/0/0 Lore% 67 Gallery% 57 Achievement% 47 Wizard Run 0 Options --------- Layout 0 ASCII 0 Keyboard 0 Movement Numpad Keybinds 0 Fullscreen 2 Font 18/Terminus Map View 76x50 Zoom Use 0% Tactical HUD 1 Map Filters NONE Filters NONE Steam 1 RUN: 8ec651ef-204c-4fc6-b815-049453abde46